bitfinex-derivatives/quotes_BTCF0:USTF0_20250130
["timestamp","ask_amount","ask_price","bid_price","bid_amount"]
[1738237681134,0.792237,105380.0,105370.0,0.002]
[1738237682036,0.89610788,105380.0,105370.0,0.002]
[1738237688043,0.92750788,105380.0,105370.0,0.002]
[1738237689246,0.90238788,105380.0,105370.0,0.002]
[1738237689439,0.92750788,105380.0,105370.0,0.002]
[1738237690446,0.95870788,105380.0,105370.0,0.0004674]
[1738237696744,0.854837,105380.0,105370.0,0.0004674]
[1738237698339,0.829717,105380.0,105370.0,0.0004674]
[1738237698536,0.854797,105380.0,105370.0,0.0004674]
[1738237698843,0.95866788,105380.0,105370.0,0.0004674]
[1738237699540,0.78866788,105380.0,105370.0,0.0004674]
[1738237700649,0.75295458,105380.0,105370.0,0.0004674]
[1738237702244,0.82111216,105380.0,105370.0,0.0004674]
[1738237705743,0.75295458,105380.0,105370.0,0.0004674]
[1738237706242,0.82111216,105380.0,105370.0,0.0004674]
[1738237708351,0.72787458,105380.0,105370.0,0.0004674]
[1738237708555,0.68905458,105380.0,105370.0,0.0330674]
[1738237708746,0.66397458,105380.0,105370.0,0.0330674]
[1738237709054,0.29705458,105380.0,105370.0,0.2546024]
[1738237709256,0.27197458,105380.0,105370.0,0.2546024]
[1738237709649,0.29705458,105380.0,105370.0,0.2546024]
[1738237710548,0.46705458,105380.0,105370.0,0.2546024]
[1738237711154,0.46705458,105380.0,105370.0,0.6154024]
[1738237715255,0.398897,105380.0,105370.0,0.6154024]
[1738237717655,0.398897,105380.0,105370.0,0.62617149]
[1738237721364,0.373817,105380.0,105370.0,0.69432907]
[1738237723551,0.184,105380.0,105370.0,0.69432907]
[1738237724353,0.014,105380.0,105370.0,0.69432907]
[1738237724864,0.373817,105380.0,105370.0,0.69432907]
[1738237726961,0.184,105380.0,105370.0,0.69432907]
[1738237727158,0.0001426,105390.0,105370.0,0.57265165]
[1738237727359,0.0001426,105390.0,105380.0,0.71703216]
[1738237727666,0.3599416,105390.0,105380.0,0.71703216]
[1738237727856,0.1701426,105390.0,105380.0,0.71703216]
[1738237728460,0.1791426,105390.0,105380.0,0.71803216]
[1738237729665,0.1851426,105390.0,105380.0,0.71803216]
[1738237730762,0.1851426,105390.0,105380.0,0.71703216]
[1738237730763,0.1761426,105390.0,105380.0,0.71703216]
[1738237730972,0.1771426,105390.0,105380.0,0.71803216]
[1738237731461,0.1711426,105390.0,105380.0,0.71803216]
[1738237731660,0.1761426,105390.0,105380.0,0.71803216]
[1738237743074,0.1761426,105390.0,105380.0,0.74311216]
[1738237746476,0.3659416,105390.0,105380.0,0.64987458]
[1738237748774,0.1761426,105390.0,105380.0,0.61977458]
[1738237748982,0.43409918,105390.0,105380.0,0.3618]
[1738237749279,0.35377918,105390.0,105380.0,0.001]
[1738237750179,0.35377918,105390.0,105380.0,0.190817]
[1738237750577,0.35377918,105390.0,105380.0,0.001]
[1738237750773,0.35377918,105390.0,105380.0,0.190817]
[1738237753082,0.35377918,105390.0,105380.0,0.551617]
[1738237753283,0.32869918,105390.0,105380.0,0.551617]
[1738237753484,0.35377918,105390.0,105380.0,0.551617]
[1738237754976,0.35377918,105390.0,105380.0,0.61977458]
[1738237755172,0.0958226,105390.0,105380.0,0.68793216]
[1738237755373,0.0061426,105390.0,105380.0,0.68793216]
[1738237756277,0.0061426,105390.0,105380.0,0.71301216]
[1738237756684,0.0061426,105390.0,105380.0,0.68046755]
[1738237757686,0.0051426,105390.0,105380.0,0.67946755]
[1738237757879,6e-07,105390.0,105380.0,0.7842381]
[1738237758081,0.09485741,105400.0,105390.0,0.189799]
[1738237758383,0.09485741,105400.0,105390.0,0.8503401]
[1738237759191,0.09485741,105400.0,105390.0,0.74656955]
[1738237759378,0.09685741,105400.0,105390.0,0.74756955]
[1738237759576,0.09985741,105400.0,105390.0,0.74756955]
[1738237763882,0.09985741,105400.0,105390.0,0.8513401]
[1738237764783,0.0001426,105410.0,105400.0,0.189781]
[1738237764984,0.0001426,105410.0,105400.0,0.67943155]
[1738237765982,0.0041426,105410.0,105400.0,0.68043155]
[1738237768886,0.0041426,105410.0,105400.0,0.69108351]
[1738237775292,0.0041426,105410.0,105400.0,0.56223296]
[1738237775489,0.1939056,105410.0,105400.0,0.56223296]
[1738237775685,0.2591056,105410.0,105400.0,0.56223296]
[1738237776887,0.2591056,105410.0,105400.0,0.66600351]
[1738237777194,0.0693426,105410.0,105400.0,0.66600351]
[1738237778593,0.0366426,105410.0,105400.0,0.69840412]
[1738237778786,0.0041426,105410.0,105400.0,0.69840412]
[1738237781893,0.2573056,105410.0,105400.0,0.63031854]
[1738237785293,0.1939056,105410.0,105400.0,0.69840412]
[1738237785488,0.0041426,105410.0,105400.0,0.72980412]
[1738237785796,0.1939056,105410.0,105400.0,0.72980412]
[1738237786099,0.1939056,105410.0,105400.0,0.66171854]
[1738237788196,0.1939056,105410.0,105400.0,0.72980412]
[1738237789000,0.1939056,105410.0,105400.0,0.65539854]
[1738237789202,0.2567056,105410.0,105400.0,0.63031854]
[1738237789399,0.2567056,105410.0,105400.0,0.65539854]
[1738237790398,0.32479118,105410.0,105400.0,0.56223296]
[1738237790701,0.32479118,105410.0,105400.0,0.37245196]
[1738237790898,0.2567056,105410.0,105400.0,0.44053754]
[1738237791399,0.1939056,105410.0,105400.0,0.63031854]
[1738237798909,0.1939056,105410.0,105400.0,0.56223296]
[1738237800398,0.1939056,105410.0,105400.0,0.63031854]
[1738237801301,0.1939056,105410.0,105400.0,0.56223296]
[1738237802008,0.1939056,105410.0,105400.0,0.63031854]
[1738237802493,0.1939056,105410.0,105400.0,0.56223296]
[1738237805098,0.1939056,105410.0,105400.0,0.63031854]
[1738237806006,0.1939056,105410.0,105400.0,0.56223296]
[1738237807707,0.41662503,105440.0,105430.0,0.189727]
[1738237807900,0.16431303,105440.0,105430.0,0.97941258]
[1738237808100,0.08735558,105440.0,105430.0,1.11259816]
[1738237808408,0.08735558,105440.0,105430.0,1.04451258]
[1738237808998,0.09435558,105440.0,105430.0,1.04651258]
[1738237809704,0.15544116,105440.0,105430.0,1.07059258]
[1738237809896,0.34915016,105440.0,105430.0,1.04551258]
[1738237810100,0.51915016,105440.0,105430.0,1.04551258]
[1738237810508,0.26135558,105440.0,105430.0,1.04551258]
[1738237811707,0.174,105440.0,105430.0,1.04551258]
[1738237813496,0.174,105440.0,105430.0,1.05570916]
[1738237813905,0.24208558,105440.0,105430.0,1.05570916]
[1738237814307,0.24208558,105440.0,105430.0,0.98762358]
[1738237814707,0.43179458,105440.0,105430.0,0.98762358]
[1738237815109,0.26179458,105440.0,105430.0,0.98762358]
[1738237818210,0.07208558,105440.0,105430.0,0.98762358]
[1738237819115,0.26179458,105440.0,105430.0,0.98762358]
[1738237819416,0.26179458,105440.0,105430.0,0.95512358]
[1738237819614,0.26179458,105440.0,105430.0,0.40459658]
[1738237819615,0.29189458,105440.0,105430.0,0.40459658]
[1738237819810,0.35998016,105440.0,105430.0,0.01119658]
[1738237820010,0.38998016,105440.0,105430.0,0.01119658]
[1738237820317,0.41506016,105440.0,105430.0,0.01119658]
[1738237823321,0.34697458,105440.0,105430.0,0.20092358]
[1738237824213,0.41506016,105440.0,105430.0,0.20092358]
[1738237824406,0.34697458,105440.0,105430.0,0.20092358]
[1738237824821,0.41506016,105440.0,105430.0,0.20092358]
[1738237825010,0.34697458,105440.0,105430.0,0.20092358]
[1738237825211,0.41506016,105440.0,105430.0,0.20092358]
[1738237825515,0.41506016,105440.0,105430.0,0.56172358]
[1738237825909,0.38998016,105440.0,105430.0,0.56172358]
[1738237828821,0.32189458,105440.0,105430.0,0.56172358]
[1738237829126,0.29189458,105440.0,105430.0,0.56172358]
[1738237830522,0.46189458,105440.0,105430.0,0.56172358]
[1738237835626,0.29189458,105440.0,105430.0,0.56172358]
[1738237840325,0.35998016,105440.0,105430.0,0.56172358]
[1738237841222,0.29189458,105440.0,105430.0,0.56172358]
[1738237842737,0.35998016,105440.0,105430.0,0.56172358]
[1738237843235,0.29189458,105440.0,105430.0,0.56172358]
[1738237846539,0.29189458,105440.0,105430.0,0.37199658]
[1738237846728,0.29189458,105440.0,105430.0,0.56172358]
[1738237850342,0.29189458,105440.0,105430.0,0.01119658]
[1738237850540,0.72078016,105440.0,105430.0,0.01119658]
[1738237851129,0.35998016,105440.0,105430.0,0.20092358]
[1738237851430,0.72078016,105440.0,105430.0,0.20092358]
[1738237851633,0.35998016,105440.0,105430.0,0.20092358]
[1738237852240,0.72078016,105440.0,105430.0,0.20092358]
[1738237852439,0.35998016,105440.0,105430.0,0.20092358]
[1738237852934,0.72078016,105440.0,105430.0,0.20092358]
[1738237853337,0.72078016,105440.0,105430.0,0.56172358]
[1738237853338,0.35998016,105440.0,105430.0,0.56172358]
[1738237853840,0.29189458,105440.0,105430.0,0.56172358]
[1738237855934,0.35998016,105440.0,105430.0,0.56172358]
[1738237856448,0.39078016,105440.0,105430.0,0.37199658]
[1738237856743,0.75158016,105440.0,105430.0,0.01119658]
[1738237857041,0.77666016,105440.0,105430.0,0.001]
[1738237858641,0.84474574,105440.0,105430.0,0.001]
[1738237858841,0.77666016,105440.0,105430.0,0.001]
[1738237860845,0.84474574,105440.0,105430.0,0.001]
[1738237861037,0.49589816,105430.0,105420.0,0.0001426]
[1738237861236,0.48409258,105430.0,105420.0,0.1898876]
[1738237862245,0.48609258,105430.0,105420.0,0.1898876]
[1738237862445,0.48609258,105430.0,105420.0,0.1908876]
[1738237865244,0.48609258,105430.0,105420.0,0.0011426]
[1738237865444,0.48609258,105430.0,105420.0,0.1908876]
[1738237866047,0.48609258,105430.0,105420.0,0.0011426]
[1738237866242,0.48609258,105430.0,105420.0,0.1908876]
[1738237867141,0.48609258,105430.0,105420.0,0.0011426]
[1738237867341,0.55417816,105430.0,105420.0,0.0011426]
[1738237868150,0.48609258,105430.0,105420.0,0.0011426]
[1738237868549,0.55417816,105430.0,105420.0,0.0011426]
[1738237868745,0.67076974,105430.0,105400.0,0.0331]
[1738237868951,0.189781,105400.0,105390.0,0.04976123]
[1738237869149,0.35103216,105400.0,105390.0,0.0327]
[1738237870557,0.25786658,105400.0,105390.0,0.10978558]
[1738237870852,0.28294658,105400.0,105390.0,0.592299]
[1738237871045,0.45294658,105400.0,105390.0,0.592299]
[1738237871453,0.42786658,105400.0,105390.0,0.592299]
[1738237871656,0.359781,105400.0,105390.0,0.66038458]
[1738237871852,0.189781,105400.0,105390.0,0.66038458]
[1738237872052,0.189781,105400.0,105390.0,0.66438458]
[1738237876161,0.25786658,105400.0,105390.0,0.66438458]
[1738237876463,0.25786658,105400.0,105390.0,0.596299]
[1738237882166,0.25786658,105400.0,105390.0,0.66438458]
[1738237883565,0.28294658,105400.0,105390.0,0.66438458]
[1738237884166,0.214861,105400.0,105390.0,0.66438458]
[1738237884862,0.189781,105400.0,105390.0,0.66438458]
[1738237887360,0.25786658,105400.0,105390.0,0.66438458]
[1738237893969,0.189781,105400.0,105390.0,0.66438458]
[1738237906686,0.1899096,105410.0,105400.0,0.189781]
[1738237906887,0.0001426,105410.0,105400.0,0.74905216]
[1738237907090,0.0001426,105410.0,105400.0,0.68096658]
[1738237908082,0.0001426,105410.0,105400.0,0.68196658]
[1738237908381,0.0001426,105410.0,105400.0,0.68496658]
[1738237909088,0.0001426,105410.0,105400.0,0.75305216]
[1738237909299,0.0001426,105410.0,105400.0,0.77813216]
[1738237910578,0.0001426,105410.0,105400.0,0.78787639]
[1738237911392,0.17,105420.0,105410.0,0.189763]
[1738237911579,0.17,105420.0,105410.0,0.64964858]
[1738237913785,0.189737,105430.0,105420.0,0.189745]
[1738237913997,0.222313,105440.0,105430.0,0.189727]
[1738237914288,0.29039858,105440.0,105430.0,0.583127]
[1738237915590,0.29039858,105440.0,105430.0,0.584127]
[1738237916185,0.29339858,105440.0,105430.0,0.584127]
[1738237916582,0.46339858,105440.0,105430.0,0.584127]
[1738237917690,0.003,105440.0,105430.0,0.65221258]
[1738237918388,0.71172827,105450.0,105430.0,0.65221258]
[1738237918587,0.003,105440.0,105430.0,0.66201003]
[1738237918787,0.003,105440.0,105430.0,1.02181003]
[1738237918979,0.003,105440.0,105430.0,1.02281003]
[1738237919184,0.74192827,105450.0,105430.0,1.02281003]
[1738237919384,0.002,105440.0,105430.0,0.66101003]
[1738237919584,0.002,105440.0,105430.0,1.02281003]
[1738237920286,0.60492827,105450.0,105430.0,1.02281003]
[1738237920486,0.60492827,105450.0,105440.0,0.3608]
[1738237920687,0.60492827,105450.0,105440.0,0.550509]
[1738237921096,0.32098558,105450.0,105440.0,0.550509]
[1738237921995,0.32098558,105450.0,105440.0,0.551509]
[1738237923591,0.34306558,105450.0,105440.0,0.551509]
[1738237924483,0.34606558,105450.0,105440.0,0.551509]
[1738237924996,0.32098558,105450.0,105440.0,0.551509]
[1738237925192,0.34606558,105450.0,105440.0,0.551509]
[1738237928699,0.32098558,105450.0,105440.0,0.551509]
[1738237928899,0.34606558,105450.0,105440.0,0.551509]
[1738237929094,0.32098558,105450.0,105440.0,0.551509]
[1738237929297,0.34606558,105450.0,105440.0,0.551509]
[1738237931196,0.32098558,105450.0,105440.0,0.551509]
[1738237931892,0.32098558,105450.0,105440.0,0.61959458]
[1738237932092,0.2529,105450.0,105440.0,0.61959458]
[1738237932292,0.1927,105450.0,105440.0,0.61959458]
[1738237933294,0.1927,105450.0,105440.0,0.68768016]
[1738237933802,0.1927,105450.0,105440.0,0.61959458]
[1738237936609,0.003,105450.0,105440.0,0.74968016]
[1738237936907,0.003,105450.0,105440.0,0.77476016]
[1738237939905,0.003,105450.0,105440.0,0.77472016]
[1738237940605,0.173,105450.0,105440.0,0.77472016]
[1738237947906,0.003,105450.0,105440.0,0.77472016]
[1738237954326,0.003,105450.0,105440.0,0.84280574]
[1738237954813,0.003,105450.0,105440.0,0.77472016]
[1738237955504,0.64360669,105470.0,105460.0,0.189673]
[1738237955709,0.64360669,105470.0,105460.0,0.61855858]
[1738237956611,0.64860669,105470.0,105460.0,0.61855858]
[1738237958414,0.64860669,105470.0,105460.0,0.61955858]
[1738237958620,0.45894269,105470.0,105460.0,0.68764416]
[1738237959009,0.45894269,105470.0,105460.0,0.61955858]
[1738237959211,0.64859769,105470.0,105460.0,0.61955858]
[1738237959615,0.47859769,105470.0,105460.0,0.61955858]
[1738237959817,0.47459769,105470.0,105460.0,0.61955858]
[1738237962919,0.47459769,105470.0,105460.0,0.68764416]
[1738237963713,0.47459769,105470.0,105460.0,0.62931218]
[1738237965718,0.47459769,105470.0,105460.0,0.69739776]
[1738237965921,0.47459769,105470.0,105460.0,0.62931218]
[1738237967423,0.190655,105470.0,105460.0,0.62931218]
[1738237974026,0.190655,105470.0,105460.0,0.69739776]
[1738237974820,0.001,105470.0,105460.0,1.05819776]
[1738237975728,0.190655,105470.0,105460.0,1.05819776]
[1738237976122,0.001,105470.0,105460.0,1.05819776]
[1738237977427,0.003,105470.0,105460.0,1.05819776]
[1738237980629,0.173,105470.0,105460.0,1.05819776]
[1738237981631,0.003,105470.0,105460.0,1.05819776]
[1738237982230,0.003,105470.0,105460.0,1.09119776]
[1738237984218,0.003,105470.0,105460.0,1.12369776]
[1738237990639,0.173,105470.0,105460.0,1.12369776]
[1738237991930,0.362655,105470.0,105460.0,1.12369776]
[1738237992127,0.362655,105470.0,105460.0,1.05561218]
[1738237992333,0.362655,105470.0,105460.0,1.04819218]
[1738237993032,0.362655,105470.0,105460.0,1.11627776]
[1738237996927,0.362655,105470.0,105460.0,1.09119776]
[1738237997132,0.43074058,105470.0,105460.0,0.9220266]
[1738237997333,0.43074058,105470.0,105460.0,0.99011218]
[1738237997734,0.362655,105470.0,105460.0,0.99011218]
[1738237998639,0.362655,105470.0,105460.0,1.05819776]
[1738237998840,0.173,105470.0,105460.0,1.05819776]
[1738237999146,0.173,105470.0,105460.0,1.08929776]
[1738238001339,0.362655,105470.0,105460.0,1.08929776]
[1738238002035,0.362655,105470.0,105460.0,1.02121218]
[1738238003840,0.362655,105470.0,105460.0,1.08929776]
[1738238004839,0.362655,105470.0,105460.0,1.02121218]
[1738238009048,0.362655,105470.0,105460.0,1.08929776]
[1738238009945,0.362655,105470.0,105460.0,0.99011218]
[1738238010652,0.362655,105470.0,105460.0,1.05819776]
[1738238011048,0.362655,105470.0,105460.0,0.99011218]
[1738238011250,0.192655,105470.0,105460.0,1.05819776]
[1738238014155,0.192655,105470.0,105460.0,0.99011218]
[1738238015557,0.192655,105470.0,105460.0,0.80043918]
[1738238015852,0.192655,105470.0,105460.0,0.99011218]
[1738238025357,0.26074058,105470.0,105460.0,0.0107536]
[1738238025671,0.26074058,105470.0,105460.0,0.3715536]
[1738238025864,0.28594058,105470.0,105460.0,0.0107536]
[1738238027172,0.192655,105470.0,105460.0,0.07883918]
[1738238027861,0.217855,105470.0,105460.0,0.07883918]
[1738238028174,0.192655,105470.0,105460.0,0.62931218]
[1738238030273,0.47659769,105470.0,105460.0,0.62931218]
[1738238030574,0.64659769,105470.0,105460.0,0.62931218]
[1738238032473,0.64659769,105470.0,105460.0,0.66221218]
[1738238032675,0.64659769,105470.0,105460.0,0.76169776]
[1738238032976,0.64659769,105470.0,105460.0,0.69361218]
[1738238035566,0.47659769,105470.0,105460.0,0.69361218]
[1738238035977,0.64659769,105470.0,105460.0,0.69361218]
[1738238038476,0.71468327,105470.0,105460.0,0.69361218]
[1738238038672,0.71468327,105470.0,105460.0,0.3715536]
[1738238040781,1.07548327,105470.0,105460.0,0.0107536]
[1738238040981,0.90548327,105470.0,105460.0,0.0107536]
[1738238041180,0.90548327,105470.0,105460.0,0.001]
[1738238041371,0.90548327,105470.0,105450.0,0.0001426]
[1738238041372,0.71482827,105470.0,105450.0,0.0001426]
[1738238041572,0.49185858,105460.0,105450.0,0.0001426]
[1738238041768,0.52315858,105460.0,105450.0,0.0001426]
[1738238042576,0.52315858,105460.0,105450.0,0.0011426]
[1738238043182,0.52315858,105460.0,105450.0,0.0001426]
[1738238043382,0.52415858,105460.0,105450.0,0.0001426]
[1738238043685,0.54927858,105460.0,105450.0,0.1898336]
[1738238044079,0.54927858,105460.0,105450.0,0.0001426]
[1738238044578,0.97816416,105460.0,105450.0,0.0001426]
[1738238044782,0.97816416,105460.0,105450.0,0.00988784]
[1738238045083,0.97816416,105460.0,105450.0,0.0001426]
[1738238045488,0.189691,105450.0,105440.0,0.550499]
[1738238045786,0.25777658,105450.0,105440.0,0.550499]
[1738238046483,0.25777658,105450.0,105440.0,0.61858458]
[1738238046686,0.189691,105450.0,105440.0,0.62058458]
[1738238046984,0.189691,105450.0,105440.0,0.65218458]
[1738238047979,0.189691,105450.0,105440.0,0.65518458]
[1738238049290,0.189691,105450.0,105440.0,0.66506585]
[1738238051786,0.214771,105450.0,105440.0,0.66506585]
[1738238053583,0.189691,105450.0,105440.0,0.66506585]
[1738238056386,0.214771,105450.0,105440.0,0.66506585]
[1738238059390,0.214771,105450.0,105440.0,0.59698027]
[1738238059592,0.214771,105450.0,105440.0,0.66506585]
[1738238060696,0.214771,105450.0,105440.0,0.59698027]
[1738238060899,0.214771,105450.0,105440.0,0.66506585]
[1738238061994,0.214771,105450.0,105440.0,0.59698027]
[1738238062194,0.214771,105450.0,105440.0,0.66506585]
[1738238063590,0.189691,105450.0,105440.0,0.66506585]
[1738238067398,0.189691,105450.0,105440.0,0.59698027]
[1738238067992,0.189691,105450.0,105440.0,0.66506585]
[1738238069197,0.189691,105450.0,105440.0,0.59698027]
[1738238072394,0.189691,105450.0,105440.0,0.69776585]
[1738238073203,0.189691,105450.0,105440.0,0.62968027]
[1738238075303,0.189691,105450.0,105440.0,0.69776585]
[1738238077195,0.189691,105450.0,105440.0,0.62968027]
[1738238077498,0.189691,105450.0,105440.0,0.69776585]
[1738238078305,0.189691,105450.0,105440.0,0.62968027]
[1738238087900,0.189691,105450.0,105440.0,0.37568127]
[1738238088104,0.25777658,105450.0,105440.0,0.37568127]
[1738238089209,0.189691,105450.0,105440.0,0.37568127]
[1738238089697,0.25777658,105450.0,105440.0,0.37568127]
[1738238091104,0.42777658,105450.0,105440.0,0.37568127]
[1738238092115,0.25777658,105450.0,105440.0,0.37568127]
[1738238092611,0.78857658,105450.0,105440.0,0.01488127]
[1738238099309,0.61857658,105450.0,105440.0,0.01488127]
[1738238115638,0.68666216,105450.0,105440.0,0.01488127]
[1738238115831,0.61857658,105450.0,105440.0,0.01488127]
[1738238119231,0.189709,105440.0,105430.0,0.1898676]
[1738238119434,0.25779458,105440.0,105430.0,0.19947429]
[1738238119634,0.25779458,105440.0,105430.0,0.56027429]
[1738238120635,0.189709,105440.0,105430.0,0.56027429]
[1738238120841,0.189709,105440.0,105430.0,0.62835987]
[1738238121137,0.189709,105440.0,105430.0,0.63735987]
[1738238121338,0.189709,105440.0,105430.0,0.64135987]
[1738238123531,0.3598406,105450.0,105440.0,0.189709]
[1738238123736,0.3598406,105450.0,105440.0,0.71479458]
[1738238125035,0.3598406,105450.0,105440.0,0.71579458]
[1738238125340,0.3598406,105450.0,105440.0,0.71779458]
[1738238127544,0.1898406,105450.0,105440.0,0.71779458]
[1738238128639,0.1898406,105450.0,105440.0,0.78588016]
[1738238128840,0.1898406,105450.0,105440.0,0.71779458]
[1738238129035,0.1898406,105450.0,105440.0,0.78588016]
[1738238129036,0.0001426,105450.0,105440.0,0.78588016]
[1738238129343,0.5936077,105460.0,105450.0,0.189691]
[1738238129646,0.5936077,105460.0,105450.0,0.61857658]
[1738238129647,0.5472503,105460.0,105450.0,0.61857658]
[1738238130546,0.9079233,105460.0,105450.0,0.61857658]
[1738238131336,0.363673,105460.0,105450.0,0.61857658]
[1738238131734,0.174,105460.0,105450.0,0.61857658]
[1738238137751,0.174,105460.0,105450.0,0.62804722]
[1738238138448,0.363673,105460.0,105450.0,0.62804722]
[1738238141547,0.43175858,105460.0,105450.0,0.55996164]
[1738238141751,0.49765858,105460.0,105450.0,0.62804722]
[1738238142152,0.429573,105460.0,105450.0,0.62804722]
[1738238144757,0.49765858,105460.0,105450.0,0.00947064]
[1738238145057,0.189691,105450.0,105440.0,0.65078558]
[1738238145853,0.189691,105450.0,105440.0,0.71887116]
[1738238146855,0.189691,105450.0,105440.0,0.72087116]
[1738238147353,0.189691,105450.0,105440.0,0.72187116]
[1738238147747,0.189691,105450.0,105440.0,0.44147208]
[1738238148048,0.220191,105450.0,105440.0,0.44447208]
[1738238148450,0.220191,105450.0,105440.0,0.63118108]
[1738238150946,0.390191,105450.0,105440.0,0.69926666]
[1738238152060,0.390191,105450.0,105440.0,0.63118108]
[1738238155955,0.220191,105450.0,105440.0,0.63118108]
[1738238158060,0.189691,105450.0,105440.0,0.63118108]
[1738238158361,0.189691,105450.0,105440.0,0.66358108]
[1738238158661,0.189691,105450.0,105440.0,0.69658108]
[1738238159457,0.189691,105450.0,105440.0,0.76466666]
[1738238160462,0.359691,105450.0,105440.0,0.76466666]
[1738238162268,0.359691,105450.0,105440.0,0.79546666]
[1738238162852,0.359691,105450.0,105440.0,0.72738108]
[1738238173878,0.189691,105450.0,105440.0,0.5954955]
[1738238174478,0.189691,105450.0,105440.0,0.66358108]
[1738238177683,0.61857658,105450.0,105440.0,0.0125865]
[1738238177869,0.65117658,105450.0,105440.0,0.0125865]
[1738238178270,0.65117658,105450.0,105440.0,0.003]
[1738238178673,0.67621658,105450.0,105440.0,0.003]
[1738238178876,0.189691,105450.0,105440.0,0.68968016]
[1738238179381,0.25777658,105450.0,105440.0,0.003]
[1738238179682,0.28957658,105450.0,105440.0,0.003]
[1738238190275,0.65037658,105450.0,105440.0,0.003]
[1738238192084,0.71846216,105450.0,105440.0,0.003]
[1738238192291,0.52877116,105450.0,105430.0,0.0001426]
[1738238192483,0.74998016,105440.0,105430.0,0.0001426]
[1738238192682,0.77502016,105440.0,105430.0,0.0001426]
[1738238193682,0.77502016,105440.0,105430.0,0.0021426]
[1738238194184,0.70693458,105440.0,105430.0,0.0021426]
[1738238194491,0.34613458,105440.0,105430.0,0.0021426]
[1738238194794,0.34613458,105440.0,105430.0,0.0031426]
[1738238194990,0.70693458,105440.0,105430.0,0.0031426]
[1738238195183,0.77502016,105440.0,105430.0,0.0111426]
[1738238209213,0.77502016,105440.0,105420.0,0.01115837]
[1738238209214,0.58531116,105440.0,105420.0,0.01115837]
[1738238209420,0.61861258,105430.0,105420.0,0.01115837]
[1738238210414,0.61861258,105430.0,105420.0,0.02515837]
[1738238212820,0.61861258,105430.0,105420.0,0.02415837]
[1738238215017,0.64365258,105430.0,105420.0,0.02415837]
[1738238218822,0.67515258,105430.0,105420.0,0.02415837]
[1738238222534,0.64365258,105430.0,105420.0,0.02415837]
[1738238223428,0.64365258,105430.0,105420.0,0.21390337]
[1738238224628,0.64365258,105430.0,105420.0,0.02415837]
[1738238230232,0.64365258,105430.0,105420.0,0.02273557]
[1738238234837,0.214767,105430.0,105420.0,0.57328057]
[1738238235143,0.28285258,105430.0,105420.0,0.57328057]
[1738238242642,0.25781258,105430.0,105420.0,0.57328057]
[1738238242947,0.28285258,105430.0,105420.0,0.57328057]
[1738238253356,0.64365258,105430.0,105420.0,0.02273557]
[1738238259358,0.71173816,105430.0,105420.0,0.02273557]
[1738238259555,0.189745,105420.0,105410.0,0.00156556]
[1738238259759,0.32591616,105420.0,105410.0,0.00156556]
[1738238260855,0.32591616,105420.0,105410.0,0.00656556]
[1738238261161,0.49591616,105420.0,105410.0,0.00656556]
[1738238261965,0.49691616,105420.0,105410.0,0.01456556]
[1738238262251,0.32691616,105420.0,105410.0,0.01456556]
[1738238262656,0.68771616,105420.0,105410.0,0.01456556]
[1738238262860,0.85771616,105420.0,105410.0,0.01456556]
[1738238263457,0.85771616,105420.0,105410.0,0.0131426]
[1738238263661,0.91981616,105420.0,105410.0,0.0131426]
[1738238265158,0.98790174,105420.0,105410.0,6e-07]
[1738238265457,0.94485616,105420.0,105410.0,6e-07]
[1738238265658,0.91981616,105420.0,105410.0,6e-07]
[1738238265863,0.94485616,105420.0,105410.0,6e-07]
[1738238266058,0.94485616,105420.0,105390.0,0.71270081]
[1738238266059,0.189781,105400.0,105390.0,0.71270081]
[1738238266365,0.25786658,105400.0,105390.0,0.71270081]
[1738238266565,0.25786658,105400.0,105390.0,0.72225905]
[1738238266760,0.189781,105400.0,105390.0,0.72225905]
[1738238267064,0.359781,105400.0,105390.0,0.72225905]
[1738238267563,0.360781,105400.0,105390.0,0.72825905]
[1738238268163,0.361781,105400.0,105390.0,0.72825905]
[1738238269467,0.42986658,105400.0,105390.0,0.66017347]
[1738238270264,0.42986658,105400.0,105390.0,0.10958147]
[1738238270564,0.79066658,105400.0,105390.0,0.07838147]
[1738238270860,0.68875216,105400.0,105390.0,0.07838147]
[1738238271055,0.62066658,105400.0,105390.0,0.07838147]
[1738238271458,0.84246658,105400.0,105390.0,0.07838147]
[1738238271659,0.91055216,105400.0,105390.0,0.07838147]
[1738238272056,0.54975216,105400.0,105390.0,0.07838147]
[1738238272365,0.54975216,105400.0,105390.0,0.00742323]
[1738238272366,0.91055216,105400.0,105390.0,0.00742323]
[1738238272561,0.94205216,105400.0,105390.0,0.00742323]
[1738238274060,0.97325216,105400.0,105390.0,0.00442323]
[1738238277463,0.75145216,105400.0,105390.0,0.00442323]
[1738238278552,0.75145216,105400.0,105390.0,0.003]
[1738238278762,0.64470658,105400.0,105390.0,0.07108558]
[1738238279169,0.64470658,105400.0,105390.0,0.003]
[1738238280363,0.25886658,105400.0,105390.0,0.553599]
[1738238280567,0.45394658,105400.0,105390.0,0.584599]
[1738238281158,0.88283216,105400.0,105390.0,0.003]
[1738238281453,0.91283216,105400.0,105390.0,0.003]
[1738238285960,0.81478658,105400.0,105390.0,0.192799]
[1738238286159,0.81478658,105400.0,105390.0,0.225299]
[1738238288363,0.45398658,105400.0,105390.0,0.225299]
[1738238292574,0.52207216,105400.0,105390.0,0.225299]
[1738238292964,0.52207216,105400.0,105390.0,0.0355]
[1738238296272,0.52207216,105400.0,105390.0,0.003]
[1738238297679,0.88287216,105400.0,105390.0,0.003]
[1738238298078,0.91487216,105400.0,105390.0,0.003]
[1738238299672,0.74487216,105400.0,105390.0,0.003]
[1738238302270,0.71975216,105400.0,105390.0,0.003]
[1738238302469,0.74495216,105400.0,105390.0,0.003]
[1738238307072,0.7544787,105400.0,105390.0,0.003]
[1738238318492,0.82256428,105400.0,105390.0,0.003]
[1738238318988,0.7544787,105400.0,105390.0,0.003]
[1738238319191,0.189798,105390.0,105380.0,0.00156601]
[1738238319383,0.75146916,105390.0,105380.0,0.00156601]
[1738238319892,0.68338358,105390.0,105380.0,0.00156601]
[1738238321497,0.75246916,105390.0,105380.0,0.00556601]
[1738238321793,0.75146916,105390.0,105380.0,0.00556601]
[1738238322006,0.75246916,105390.0,105380.0,0.00556601]
[1738238322205,0.75246916,105390.0,105380.0,0.00456601]
[1738238329914,0.75246916,105390.0,105380.0,0.00156601]
[1738238332706,0.67646358,105390.0,105380.0,0.0001426]
[1738238333006,0.74454916,105390.0,105380.0,0.0001426]
[1738238333213,0.77494916,105390.0,105380.0,0.0001426]
[1738238338208,0.74986916,105390.0,105380.0,0.0001426]
[1738238338414,0.77494916,105390.0,105380.0,0.0001426]
[1738238341614,0.74986916,105390.0,105380.0,0.0001426]